bitfinex/quotes_SOLUSD_20250317
["timestamp","ask_amount","ask_price","bid_price","bid_amount"]
[1742230327371,1.467e-05,127.53,127.52,485.74841299]
[1742230327897,1.467e-05,127.54,127.53,0.28432314]
[1742230328202,1.467e-05,127.54,127.53,22.29401825]
[1742230328373,1.467e-05,127.54,127.53,41.22799025]
[1742230329086,1.467e-05,127.54,127.53,49.06919025]
[1742230329285,1.467e-05,127.54,127.53,30.13521825]
[1742230329477,1.467e-05,127.54,127.53,28.56771299]
[1742230329985,1.467e-05,127.54,127.52,14.9217]
[1742230332702,1.467e-05,127.54,127.53,20.44218985]
[1742230333381,1.467e-05,127.54,127.53,28.56771299]
[1742230334173,1.467e-05,127.54,127.53,30.13526079]
[1742230334786,1.467e-05,127.54,127.53,49.06923279]
[1742230336075,1.467e-05,127.56,127.55,6.93602314]
[1742230336277,4.401e-05,127.57,127.55,167.04539971]
[1742230336586,4.401e-05,127.57,127.56,27.52218985]
[1742230337183,4.401e-05,127.57,127.56,339.52218985]
[1742230337582,4.401e-05,127.57,127.56,347.64591299]
[1742230337790,4.401e-05,127.57,127.56,14.9194]
[1742230339897,4.401e-05,127.57,127.56,35.36158985]
[1742230340074,4.401e-05,127.57,127.56,35.64591299]
[1742230340502,4.401e-05,127.57,127.56,173.74591299]
[1742230340907,4.401e-05,127.57,127.56,485.74591299]
[1742230341577,4.401e-05,127.57,127.56,153.0194]
[1742230342177,4.401e-05,127.57,127.56,14.9194]
[1742230342402,4.401e-05,127.57,127.56,7.08]
[1742230342797,4.401e-05,127.57,127.56,14.9194]
[1742230343392,4.401e-05,127.57,127.56,7.08]
[1742230344499,0.03004401,127.57,127.56,7.08]
[1742230345003,0.03004401,127.57,127.56,7.8394]
[1742230348607,0.03004401,127.57,127.55,14.8997]
[1742230363094,0.03004401,127.57,127.55,7.06]
[1742230363296,13.07337861,127.57,127.55,7.06]
[1742230364002,13.0433346,127.56,127.54,138.1]
[1742230364217,13.0433346,127.55,127.54,138.1]
[1742230365320,0.03004401,127.57,127.56,20.28432314]
[1742230365511,0.03004401,127.57,127.56,34.89485723]
[1742230365711,0.03004401,127.57,127.56,53.82882923]
[1742230365929,0.03004401,127.57,127.56,21.85152263]
[1742230366218,0.03004401,127.57,127.54,7.8405]
[1742230366598,13.07337861,127.57,127.54,7.8405]
[1742230369225,0.03004401,127.57,127.54,7.8405]
[1742230369614,0.03004401,127.57,127.54,7.9035]
[1742230371699,0.03004401,127.57,127.54,146.0035]
[1742230372248,0.03004401,127.57,127.54,165.6051]
[1742230372439,0.03004401,127.57,127.54,178.6484346]
[1742230372603,0.03004401,127.57,127.55,0.28432314]
[1742230373212,0.03004401,127.57,127.55,312.28432314]
[1742230374308,4.401e-05,127.57,127.56,21.16705774]
[1742230374523,4.401e-05,127.57,127.56,179.76827546]
[1742230374730,4.401e-05,127.57,127.56,178.20102974]
[1742230375116,4.401e-05,127.57,127.56,186.00982974]
[1742230377630,4.401e-05,127.57,127.56,498.00982974]
[1742230378212,4.401e-05,127.6,127.59,13.0433346]
[1742230378418,4.401e-05,127.6,127.59,162.51491193]
[1742230378728,4.401e-05,127.6,127.59,158.60765774]
[1742230379241,4.401e-05,127.61,127.59,158.60765774]
[1742230380234,4.401e-05,127.61,127.6,7.8369]
[1742230381734,13.04337861,127.61,127.6,7.8369]
[1742230383306,4.401e-05,127.61,127.6,7.8369]
[1742230384334,4.401e-05,127.61,127.59,7.8376]
[1742230384709,4.401e-05,127.61,127.59,7.8944788]
[1742230385528,13.0433346,127.6,127.59,0.0568788]
[1742230390243,4.401e-05,127.61,127.59,0.0568788]
[1742230390544,4.401e-05,127.61,127.59,7.8944788]
[1742230391738,4.401e-05,127.61,127.59,28.0778134]
[1742230392045,4.401e-05,127.61,127.6,13.0433346]
[1742230392817,4.401e-05,127.61,127.6,20.8802346]
[1742230393131,4.401e-05,127.61,127.6,30.04383936]
[1742230393535,4.401e-05,127.61,127.6,28.47704304]
[1742230394933,4.401e-05,127.61,127.6,8.12122314]
[1742230395147,4.401e-05,127.61,127.6,7.8369]
[1742230395357,20.35586391,127.61,127.6,7.8369]
[1742230395648,20.35586391,127.61,127.59,0.0568788]
[1742230395851,20.3558199,127.6,127.59,0.0568788]
[1742230396550,20.35586391,127.61,127.59,7.8942788]
[1742230397349,20.35586391,127.61,127.59,0.0568788]
[1742230400448,20.3558199,127.6,127.59,0.0568788]
[1742230405034,28.1927199,127.6,127.59,0.0568788]
[1742230405254,20.3558199,127.6,127.59,0.1198788]
[1742230405863,7.10004401,127.61,127.59,0.1198788]
[1742230406155,20.3558199,127.6,127.59,0.1198788]
[1742230408170,7.10004401,127.61,127.59,0.1198788]
[1742230408463,20.3558199,127.6,127.59,0.1198788]
[1742230410747,7.10004401,127.61,127.59,7.9573788]
[1742230410748,4.401e-05,127.61,127.59,7.9573788]
[1742230411860,20.35586391,127.61,127.59,7.9573788]
[1742230412045,4.401e-05,127.61,127.59,7.9573788]
[1742230413865,4.401e-05,127.61,127.59,20.99273757]
[1742230414166,4.401e-05,127.61,127.6,13.31968191]
[1742230414379,4.401e-05,127.61,127.6,19.77798191]
[1742230414963,4.401e-05,127.61,127.6,27.61488191]
[1742230415160,4.401e-05,127.61,127.6,173.03593485]
[1742230417043,4.401e-05,127.61,127.6,485.03593485]
[1742230417767,4.401e-05,127.61,127.6,457.9369]
[1742230417955,4.401e-05,127.61,127.6,145.9369]
[1742230421168,4.401e-05,127.61,127.6,166.57763485]
[1742230422250,4.401e-05,127.62,127.61,0.56864628]
[1742230422460,4.401e-05,127.62,127.61,187.89795212]
[1742230422663,4.401e-05,127.62,127.61,186.33160685]
[1742230423357,4.401e-05,127.62,127.61,213.19911856]
[1742230423556,4.401e-05,127.62,127.61,221.03541856]
[1742230425169,4.401e-05,127.62,127.61,200.67900685]
[1742230425463,4.401e-05,127.62,127.61,512.67900685]
[1742230425672,4.401e-05,127.62,127.61,533.03541856]
[1742230427490,20.38641171,127.7,127.64,20.0]
[1742230427659,20.38641171,127.7,127.65,7.06]
[1742230428278,0.03,127.7,127.65,7.06]
[1742230428449,0.03,127.7,127.66,0.28432314]
[1742230428655,0.03,127.7,127.66,20.64073485]
[1742230428853,0.03,127.7,127.67,20.35641171]
[1742230429069,0.03,127.7,127.67,158.4563677]
[1742230429580,0.03,127.7,127.68,7.832]
[1742230430772,0.03,127.7,127.68,319.832]
[1742230433778,20.38641171,127.7,127.68,319.832]
[1742230433967,20.38641171,127.7,127.67,145.93235599]
[1742230435969,20.35641171,127.68,127.67,138.09995599]
[1742230436285,0.03,127.7,127.67,145.93255599]
[1742230436483,20.38641171,127.7,127.67,145.93255599]
[1742230437266,13.04895636,127.7,127.67,145.93255599]
[1742230439185,13.04895636,127.7,127.67,7.8326]
[1742230440184,13.04895636,127.7,127.66,8.11762314]
[1742230440383,13.01895636,127.69,127.66,8.11762314]
[1742230440597,13.01895636,127.68,127.66,7.8333]
[1742230441165,13.01895636,127.67,127.64,7.8345]
[1742230441367,13.01895636,127.65,127.63,7.8348]
[1742230444181,13.01895636,127.62,127.61,0.063]
[1742230445187,20.37319895,127.62,127.61,0.063]
[1742230446883,54.20287095,127.62,127.61,0.063]
[1742230447604,20.0,127.6,127.59,0.063]
[1742230447783,40.37319895,127.6,127.59,0.063]
[1742230448406,48.21009895,127.6,127.59,0.063]
[1742230448783,40.37319895,127.6,127.59,0.063]
[1742230449679,7.06,127.62,127.59,0.063]
[1742230449903,20.37319895,127.6,127.59,0.063]
[1742230450220,20.37319895,127.61,127.59,0.063]
[1742230450803,20.37319895,127.6,127.59,0.063]
[1742230451405,20.0,127.61,127.59,0.063]
[1742230451603,40.37319895,127.61,127.59,0.063]
[1742230452927,20.37319895,127.6,127.59,0.063]
[1742230456027,20.0,127.56,127.54,0.063]
[1742230456234,20.37319895,127.55,127.54,0.063]
[1742230461524,20.0,127.56,127.54,0.063]
[1742230461724,20.37319895,127.55,127.54,0.063]
[1742230464111,20.0,127.56,127.54,0.063]
[1742230464310,20.37319895,127.55,127.54,0.063]
[1742230466827,47.14717095,127.55,127.54,0.063]
[1742230467127,39.30717095,127.55,127.54,0.063]
[1742230468231,20.37319895,127.55,127.54,0.063]
[1742230472540,20.37319895,127.5,127.48,7.9072]
[1742230473326,20.37319895,127.49,127.48,0.063]
[1742230476446,40.37319895,127.51,127.48,0.063]
[1742230477923,20.37319895,127.5,127.48,0.063]
[1742230478127,20.37319895,127.49,127.48,0.063]
[1742230483337,20.0,127.51,127.48,0.063]
[1742230483640,20.37319895,127.5,127.48,0.063]
[1742230483844,20.37319895,127.49,127.48,0.063]
[1742230484028,20.37319895,127.5,127.48,0.063]
[1742230485817,40.37319895,127.51,127.48,0.063]
[1742230486530,18.79181043,127.54,127.48,0.063]
[1742230486739,20.37319895,127.52,127.48,0.063]
[1742230487047,20.37319895,127.51,127.48,0.063]
[1742230487543,18.79181043,127.54,127.48,0.063]
[1742230487747,20.37319895,127.52,127.48,0.063]
[1742230488132,20.37319895,127.51,127.48,0.063]
[1742230488751,10.20234782,127.51,127.48,0.063]
[1742230488939,20.37319895,127.5,127.48,0.063]
[1742230491658,20.37319895,127.51,127.48,0.063]
[1742230492859,20.37319895,127.49,127.48,0.063]
[1742230494959,47.15087095,127.49,127.48,0.063]
[1742230495630,47.29303252,127.49,127.48,0.063]
[1742230495854,47.43519409,127.49,127.48,0.063]
[1742230499754,18.933972,127.49,127.48,0.063]
[1742230499959,39.30717095,127.49,127.48,0.063]
[1742230501571,20.37319895,127.49,127.48,0.063]
[1742230502638,0.14216157,127.52,127.48,0.063]
[1742230502853,20.37319895,127.52,127.48,0.063]
[1742230503166,20.37319895,127.51,127.48,7.9073]
[1742230503938,20.37319895,127.51,127.48,27.5182]
[1742230504141,40.37319895,127.52,127.48,27.5182]
[1742230504749,20.37319895,127.51,127.48,7.9073]
[1742230504962,20.37319895,127.49,127.48,0.063]
[1742230511568,20.0,127.49,127.48,0.063]
[1742230511872,40.37319895,127.49,127.48,0.063]
[1742230512273,20.0,127.49,127.48,0.063]
[1742230512773,40.37319895,127.49,127.48,0.063]
[1742230516375,20.0,127.49,127.48,0.063]
[1742230516969,0.03,127.51,127.48,0.063]
[1742230517567,0.03,127.51,127.48,7.9073]
[1742230518849,0.03,127.51,127.48,9.5099]
[1742230519047,0.03,127.51,127.48,29.1208]
[1742230520285,0.03,127.51,127.48,9.5099]
[1742230520877,20.42951958,127.51,127.48,9.5099]
[1742230521052,20.39951958,127.5,127.48,0.063]
[1742230521261,20.39951958,127.49,127.48,0.063]
[1742230521580,40.39951958,127.49,127.48,0.063]
[1742230522570,47.17719158,127.49,127.48,0.063]
[1742230527888,47.46151472,127.49,127.48,0.063]
[1742230528057,40.79903916,127.48,127.47,0.063]
[1742230528783,20.39951958,127.48,127.47,0.063]
[1742230529795,28.24381958,127.48,127.47,0.063]
[1742230530105,28.24381958,127.48,127.46,0.063]
[1742230530106,19.21829514,127.47,127.46,0.063]
[1742230530389,67.0973343,127.47,127.46,0.063]
[1742230531697,18.64964886,127.46,127.44,0.063]
[1742230531870,28.24571958,127.45,127.44,0.063]
[1742230532064,47.46401472,127.45,127.44,0.063]
[1742230532270,39.33349158,127.45,127.44,0.063]
[1742230541170,32.01208675,127.45,127.44,0.063]
[1742230541570,39.85828675,127.45,127.44,0.063]
[1742230542185,32.01208675,127.45,127.44,0.063]
[1742230546392,39.85828675,127.45,127.44,0.063]
[1742230547402,40.14260989,127.45,127.43,0.063]
[1742230547602,19.21829514,127.44,127.43,0.063]
[1742230547797,32.29640989,127.44,127.43,0.063]
[1742230548601,40.14320989,127.44,127.43,0.063]
[1742230550993,40.14320989,127.44,127.42,0.063]
[1742230551195,39.37640989,127.43,127.42,0.063]
[1742230553000,47.22380989,127.43,127.42,0.063]
[1742230556722,18.933972,127.42,127.41,0.063]
[1742230557021,20.0,127.37,127.35,0.063]
[1742230557199,13.07811475,127.36,127.35,0.063]
[1742230558006,13.07811475,127.37,127.35,7.9153]
[1742230558190,20.15811475,127.39,127.35,7.9153]
[1742230559107,13.07811475,127.38,127.35,7.9153]
[1742230559422,20.15811475,127.39,127.35,7.9153]
[1742230559594,13.07811475,127.4,127.35,40.62431475]
[1742230560725,13.07811475,127.4,127.35,27.5462]
[1742230561107,13.07811475,127.39,127.35,27.5462]
[1742230564139,13.07811475,127.4,127.35,40.62431475]
[1742230564732,13.07811475,127.4,127.35,27.5462]
[1742230565033,13.07811475,127.38,127.35,7.9153]
[1742230566435,13.07811475,127.36,127.35,0.063]
[1742230567020,13.07811475,127.37,127.35,0.063]
[1742230567224,7.8501,127.39,127.35,0.063]
[1742230567225,13.07811475,127.38,127.35,0.063]
[1742230567408,13.22027632,127.39,127.35,0.063]
[1742230567805,20.0,127.39,127.35,13.14111475]
[1742230567997,33.07811475,127.39,127.35,0.063]
[1742230569533,13.07811475,127.38,127.35,0.063]
[1742230570204,13.07811475,127.36,127.35,0.063]
[1742230571720,13.07811475,127.37,127.35,0.063]
[1742230571905,18.933972,127.38,127.35,0.063]
[1742230572105,32.01208675,127.38,127.35,0.063]
[1742230572509,18.933972,127.38,127.35,0.063]
[1742230572815,13.07811475,127.37,127.35,0.063]
[1742230574831,32.01208675,127.38,127.35,0.063]
[1742230576214,27.08,127.39,127.35,0.063]
[1742230576215,40.15811475,127.39,127.35,0.063]
[1742230576938,20.03,127.4,127.36,13.07811475]
[1742230578013,20.03,127.4,127.37,7.8511]
[1742230579336,0.03,127.4,127.37,20.92921475]
[1742230579538,0.03,127.4,127.38,8.1425]
[1742230580037,0.03,127.4,127.39,20.92801475]
[1742230580231,0.0001,127.4,127.39,28.29233789]
[1742230580414,0.03,127.45,127.39,47.63271475]
[1742230580610,0.03,127.45,127.41,13.07811475]
[1742230581937,0.03,127.45,127.42,7.848]
[1742230582731,0.03,127.45,127.42,27.4681]
[1742230583121,0.03,127.45,127.42,40.54621475]
[1742230583851,0.03,127.45,127.44,13.07811475]
[1742230584134,0.03,127.45,127.44,20.92491475]
[1742230585244,0.03,127.45,127.44,28.25710882]
[1742230585554,0.03,127.45,127.44,7.8468]
[1742230586217,0.03,127.45,127.43,15.9449]
[1742230586428,20.44030882,127.45,127.43,1.5649]
[1742230586739,0.03,127.45,127.42,7.8478]
[1742230588519,20.44030882,127.45,127.41,9.383]
[1742230589963,0.03,127.45,127.41,29.79330882]
[1742230590544,20.44030882,127.45,127.41,9.383]
[1742230591266,0.03,127.45,127.41,29.79330882]
[1742230592153,0.03,127.45,127.41,9.383]
[1742230592749,0.03,127.45,127.41,29.79330882]
[1742230592941,0.03,127.45,127.41,9.383]
[1742230594264,20.41030882,127.44,127.4,21.0407]
[1742230594641,20.44030882,127.45,127.4,21.0407]
[1742230594828,0.03,127.45,127.41,20.41030882]
[1742230596135,0.03,127.45,127.43,7.8474]
[1742230596331,0.03,127.45,127.43,28.25770882]
[1742230596729,0.03,127.45,127.43,7.8474]
[1742230597252,0.03,127.45,127.43,28.25770882]
[1742230597493,0.03,127.45,127.44,27.75463196]
[1742230597636,0.03,127.45,127.44,34.01653196]
[1742230597834,0.0001,127.45,127.44,34.01653196]
[1742230598138,0.0001,127.45,127.44,41.57900882]
[1742230600344,0.0001,127.45,127.44,35.31710882]
[1742230600663,0.0001,127.45,127.44,7.06]
[1742230600847,0.0001,127.45,127.44,14.9068]
[1742230601742,0.0001,127.45,127.44,35.31710882]
[1742230603960,0.0001,127.45,127.44,14.9068]
[1742230605364,0.0001,127.45,127.44,27.97286546]
[1742230607567,0.0001,127.45,127.44,28.2571886]
[1742230609967,0.0001,127.45,127.44,166.35714459]
[1742230610557,0.0001,127.45,127.44,185.29111659]
[1742230610770,0.0001,127.45,127.44,503.44571659]
[1742230615277,0.0001,127.45,127.44,503.50871659]
[1742230620883,0.03,127.51,127.48,20.0]
[1742230621062,0.03,127.51,127.5,13.06606546]
[1742230621679,0.03,127.51,127.5,20.90916546]
[1742230622785,0.03,127.51,127.5,7.8431]
[1742230623289,0.03,127.51,127.5,20.90916546]
[1742230624273,0.03,127.51,127.5,332.90916546]
[1742230624781,0.03,127.51,127.48,138.09985599]
[1742230624978,0.03,127.51,127.48,145.94415599]
[1742230626490,0.03,127.51,127.48,138.09985599]
[1742230626661,0.03,127.51,127.48,145.94405599]
[1742230626866,13.09606546,127.51,127.47,7.06]
[1742230627067,13.09606546,127.51,127.47,14.9049]
[1742230627579,13.09606546,127.51,127.46,7.06]
[1742230627888,0.03,127.51,127.46,20.12606546]
[1742230628077,13.09606546,127.51,127.46,20.12606546]
[1742230628283,20.93866546,127.51,127.46,14.9052]
[1742230628685,13.09606546,127.51,127.46,14.9052]
[1742230629574,13.09606546,127.51,127.46,7.8452]
[1742230629785,13.06606546,127.5,127.46,7.8452]
[1742230629986,13.06606546,127.49,127.46,7.8452]
[1742230630195,13.06606546,127.5,127.46,7.8452]
[1742230631188,20.90916546,127.5,127.46,7.8452]
[1742230631391,20.0,127.45,127.44,0.063]
[1742230631593,33.06606546,127.45,127.44,0.063]
[1742230637289,13.06606546,127.45,127.44,0.063]
[1742230638302,13.06606546,127.46,127.44,0.063]
[1742230640893,13.06606546,127.45,127.44,0.063]
[1742230641281,33.06606546,127.45,127.44,0.063]
[1742230641881,52.00003746,127.45,127.44,0.063]
[1742230642588,59.84623746,127.45,127.44,0.063]
[1742230646607,52.00003746,127.45,127.44,0.063]
[1742230647985,59.84623746,127.45,127.44,0.063]
[1742230648901,52.00003746,127.45,127.44,0.063]
[1742230649101,33.06606546,127.45,127.44,0.063]
[1742230650112,13.06606546,127.45,127.44,0.063]
[1742230650412,13.06606546,127.47,127.44,0.063]
[1742230650616,13.06606546,127.46,127.44,0.063]
[1742230651199,13.06606546,127.45,127.44,0.063]
[1742230652519,20.91226546,127.45,127.44,0.063]
[1742230653219,39.84623746,127.45,127.44,0.063]
[1742230656796,40.1305606,127.45,127.44,0.063]
[1742230657191,39.84623746,127.45,127.44,0.063]
[1742230660094,32.00003746,127.45,127.44,0.063]
[1742230660295,13.06606546,127.45,127.44,0.063]
[1742230661013,20.0,127.45,127.44,0.063]
[1742230664622,13.06606546,127.45,127.44,0.063]
[1742230668420,40.1305606,127.45,127.44,0.063]
[1742230669100,32.00003746,127.45,127.44,0.063]
[1742230670604,39.84623746,127.45,127.44,0.063]
[1742230670803,32.00003746,127.45,127.44,0.063]
[1742230672128,39.84623746,127.45,127.44,0.063]
[1742230673522,39.56191432,127.45,127.44,0.063]
[1742230674630,39.84623746,127.45,127.44,0.063]
[1742230676022,32.00003746,127.45,127.44,0.063]
[1742230677405,39.84623746,127.45,127.44,0.063]
[1742230678901,40.1305606,127.45,127.44,0.063]
[1742230689134,38.933972,127.41,127.4,0.063]
[1742230689335,52.00003746,127.41,127.4,0.063]
[1742230691212,59.84863746,127.41,127.4,0.063]
[1742230692338,52.00003746,127.41,127.4,0.063]
[1742230692711,59.84863746,127.41,127.4,0.063]
[1742230693813,60.1329606,127.41,127.4,0.063]
[1742230694632,47.06689514,127.41,127.4,0.063]
[1742230694813,60.1329606,127.41,127.4,0.063]
[1742230695633,112.39722244,127.41,127.4,0.063]
[1742230695932,18.933972,127.4,127.35,1.6215]
[1742230696136,13.06606546,127.37,127.35,1.6215]
[1742230696332,13.06606546,127.36,127.35,0.063]
[1742230697215,31.85787589,127.37,127.35,0.063]
[1742230697417,20.12606546,127.38,127.35,7.9151]
[1742230697824,13.06606546,127.37,127.35,7.9151]
[1742230699529,31.71571432,127.37,127.35,0.063]
[1742230700219,13.06606546,127.36,127.35,0.063]
[1742230700419,18.64964886,127.37,127.35,0.063]
[1742230700420,31.71571432,127.37,127.35,0.063]
[1742230700925,13.06606546,127.36,127.35,0.063]
[1742230702446,39.85173746,127.36,127.35,0.063]
[1742230704525,40.1360606,127.36,127.35,0.063]
[1742230705642,18.933972,127.35,127.34,0.063]
[1742230705844,32.00003746,127.35,127.34,0.063]
[1742230706538,40.1366606,127.35,127.34,0.063]
[1742230706736,13.06606546,127.35,127.34,0.063]
[1742230707138,32.00003746,127.35,127.34,0.063]
[1742230707529,32.2843606,127.35,127.34,0.063]
[1742230708430,32.00003746,127.35,127.34,0.063]
[1742230708857,39.85233746,127.35,127.34,0.063]
[1742230709151,40.1366606,127.35,127.34,0.063]
[1742230709526,19.21829514,127.34,127.33,0.063]
[1742230709731,32.2843606,127.34,127.33,0.063]
[1742230709934,39.21829514,127.32,127.31,0.063]
[1742230710137,59.3443606,127.32,127.31,0.063]
[1742230710752,45.993972,127.32,127.31,0.063]
[1742230711058,59.06003746,127.32,127.31,0.063]
[1742230711557,20.0,127.32,127.31,0.063]
[1742230711755,13.06606546,127.33,127.31,0.063]
[1742230713736,33.06606546,127.32,127.31,0.063]
[1742230714349,13.06606546,127.33,127.31,0.063]
[1742230717598,20.0,127.32,127.31,0.063]
[1742230717872,20.0,127.33,127.31,0.063]
[1742230718039,20.0,127.32,127.31,0.063]
[1742230719262,33.56134886,127.36,127.31,0.063]
[1742230719263,20.0,127.33,127.31,0.063]
[1742230719571,20.0,127.32,127.31,0.063]
[1742230722165,33.12906546,127.33,127.31,0.063]
[1742230722761,20.063,127.33,127.31,0.063]
[1742230725177,0.063,127.33,127.32,14.72136546]
[1742230726361,0.063,127.33,127.32,22.57556546]
[1742230726878,0.0001,127.33,127.32,22.57556546]
[1742230728570,0.0001,127.33,127.32,14.72136546]
[1742230729057,0.0001,127.33,127.32,1.6553]
[1742230733354,0.0001,127.33,127.31,7.123]
[1742230733563,0.0001,127.33,127.31,0.063]
[1742230740577,13.06606546,127.32,127.31,0.063]
[1742230740772,33.06606546,127.32,127.31,0.063]
[1742230740972,52.00003746,127.32,127.31,0.063]
[1742230741572,51.71571432,127.32,127.31,0.063]
[1742230742087,59.85423746,127.32,127.31,0.063]
[1742230746386,52.00003746,127.32,127.31,0.063]
[1742230746593,33.06606546,127.32,127.31,0.063]
[1742230748093,40.92026546,127.32,127.31,0.063]
[1742230748296,39.85423746,127.32,127.31,0.063]
[1742230751400,40.1385606,127.32,127.31,0.063]
[1742230752608,39.85423746,127.32,127.31,0.063]
[1742230756105,48.1767606,127.32,127.31,0.063]
[1742230756400,19.21829514,127.31,127.3,0.063]
[1742230756601,39.3443606,127.31,127.3,0.063]
[1742230757379,25.993972,127.31,127.3,0.063]
[1742230757684,39.06003746,127.31,127.3,0.063]
[1742230758490,32.00003746,127.31,127.3,0.063]
[1742230759801,13.06606546,127.32,127.3,0.063]
[1742230760205,33.06606546,127.31,127.3,0.063]
[1742230766427,52.00003746,127.31,127.3,0.063]
[1742230766726,59.85483746,127.31,127.3,0.063]
[1742230769626,52.00003746,127.31,127.3,0.063]
[1742230770209,38.933972,127.31,127.3,0.063]
[1742230770428,38.64964886,127.31,127.3,0.063]
[1742230770816,13.12906546,127.32,127.3,0.063]
[1742230771014,20.0,127.31,127.3,0.063]
[1742230771735,13.12906546,127.32,127.3,0.063]
[1742230772036,32.00003746,127.31,127.3,0.063]
[1742230773849,39.85483746,127.31,127.3,0.063]
[1742230774626,32.00003746,127.31,127.3,0.063]
[1742230775927,20.0,127.31,127.3,0.063]
[1742230776129,31.71571432,127.31,127.3,0.063]
[1742230779931,32.00003746,127.31,127.3,0.063]
[1742230780137,39.91783746,127.31,127.3,0.063]
[1742230781232,47.2621606,127.31,127.3,0.063]
[1742230782418,51.15498231,127.31,127.3,0.063]
[1742230786439,47.2621606,127.31,127.3,0.063]
[1742230788032,18.996972,127.31,127.3,0.063]
[1742230789422,32.06303746,127.31,127.3,0.063]
[1742230789619,39.91783746,127.31,127.3,0.063]
[1742230789953,40.2021606,127.31,127.3,0.063]
[1742230790623,39.91783746,127.31,127.3,0.063]
[1742230790823,40.2021606,127.31,127.3,0.063]
[1742230791922,32.3473606,127.31,127.3,0.063]
[1742230792733,40.2021606,127.31,127.3,0.063]
[1742230797842,32.06303746,127.31,127.3,0.063]
[1742230799650,39.91783746,127.31,127.3,0.063]
[1742230800039,40.2021606,127.31,127.3,0.063]
[1742230800556,18.933972,127.3,127.29,0.03]
[1742230800841,32.00003746,127.3,127.29,0.03]
[1742230801042,40.19485883,127.3,127.29,0.03]
[1742230801749,39.85543746,127.3,127.29,0.03]
[1742230804747,40.1397606,127.3,127.29,0.03]
[1742230807953,32.2843606,127.3,127.29,0.03]
[1742230808554,40.1397606,127.3,127.29,0.03]
[1742230811360,32.00003746,127.3,127.29,0.03]
[1742230811969,40.1397606,127.3,127.29,0.03]
[1742230813448,40.1397606,127.3,127.28,0.063]
[1742230813662,32.00003746,127.29,127.28,0.063]
[1742230814161,18.933972,127.28,127.27,0.03]
[1742230814460,39.06003746,127.28,127.27,0.03]
[1742230814959,18.933972,127.24,127.22,0.063]
[1742230815158,31.85787589,127.23,127.22,0.063]
[1742230815363,18.79181043,127.23,127.22,0.063]
[1742230815561,31.85787589,127.23,127.22,0.063]
[1742230817647,32.2843606,127.23,127.22,0.063]
[1742230818171,40.1440606,127.23,127.22,0.063]
[1742230819872,38.79181043,127.2,127.19,0.03]
[1742230820059,59.20219903,127.2,127.19,0.03]
[1742230820869,58.91787589,127.2,127.19,0.03]
[1742230821065,59.06003746,127.2,127.19,0.03]
[1742230821971,58.77571432,127.2,127.19,0.03]
[1742230822165,40.12606546,127.2,127.19,0.03]
[1742230822367,27.06,127.2,127.19,0.03]
[1742230822568,58.91787589,127.2,127.19,0.03]
[1742230823787,45.85181043,127.2,127.19,0.03]
[1742230824162,38.79181043,127.2,127.19,0.03]
[1742230826574,51.85787589,127.2,127.19,0.03]
[1742230826772,52.00003746,127.2,127.19,0.03]
[1742230826957,38.79181043,127.2,127.19,0.03]
[1742230827158,7.06,127.23,127.19,0.03]
[1742230827373,13.06606546,127.23,127.19,1.6811]
[1742230827960,31.71571432,127.24,127.19,21.18216546]
[1742230828368,31.71571432,127.24,127.2,7.8616]
[1742230829590,13.06606546,127.23,127.2,7.8616]
[1742230830295,13.06606546,127.22,127.19,15.9781]
[1742230830454,13.06606546,127.21,127.19,1.6811]
[1742230830652,33.06606546,127.22,127.19,1.6811]
[1742230831778,33.06606546,127.22,127.19,9.5431]
[1742230832584,33.06606546,127.22,127.19,1.6811]
[1742230832793,31.85787589,127.2,127.19,0.03]
[1742230833682,40.1459606,127.2,127.19,0.03]
[1742230838076,20.28432314,127.17,127.16,0.03]